Department family,Entity,Date,Expense type,Expense area,Supplier,Transaction number,Amount,VAT registration number
Department for Business Energy and Industrial Strategy,Intellectual Property Office,03/09/2018,Career Development Services,IT Directorate,Open University Moto,H57720180906ufkhqctfw,500.00,Not Applicable
Department for Business Energy and Industrial Strategy,Intellectual Property Office,03/09/2018,Career Development Services,IT Directorate,Open University Moto,H57720180906yqyrpihpx,484.00,Not Applicable
Department for Business Energy and Industrial Strategy,Intellectual Property Office,03/09/2018,Career Development Services,IT Directorate,Asda Superstore 4928,H57720180905ksfuaaemi,3.00,Not Applicable
Department for Business Energy and Industrial Strategy,Intellectual Property Office,03/09/2018,Office Stationery,People Places & Serv Directorate,Www.Officefurnitureonl,H57720180905jjriipbhl,606.00,Not Applicable
Department for Business Energy and Industrial Strategy,Intellectual Property Office,04/09/2018,Office Stationery,Finance Directorate,Xma Ltd,H57720180906jrnwmceoq,203.59,Not Applicable
Department for Business Energy and Industrial Strategy,Intellectual Property Office,04/09/2018,Career Development Services,People Places & Serv Directorate,Coleg Gwent Training L,H57720180906tujgkbmab,1314.00,Not Applicable
Department for Business Energy and Industrial Strategy,Intellectual Property Office,04/09/2018,Entertainment,Finance Directorate,Dominos Pizza UK & Irelan,H57720180906rfmwilnxj,166.91,Not Applicable
Department for Business Energy and Industrial Strategy,Intellectual Property Office,04/09/2018,Office Stationery,People Places & Serv Directorate,Amazon.Co.Uk,H57720180906qiuhnxwol,120.91,Not Applicable
Department for Business Energy and Industrial Strategy,Intellectual Property Office,04/09/2018,Office Stationery,People Places & Serv Directorate,Tg Howell,H57720180906rbgcnnree,277.26,Not Applicable
Department for Business Energy and Industrial Strategy,Intellectual Property Office,04/09/2018,Network and infrastructure H/W,IT Directorate,Acp* Black Box Network Se,H57720180906rotspiypb,96.78,Not Applicable
Department for Business Energy and Industrial Strategy,Intellectual Property Office,05/09/2018,Office Stationery,Finance Directorate,Cartridge Save,H57720180907dbudymkue,127.34,Not Applicable
Department for Business Energy and Industrial Strategy,Intellectual Property Office,05/09/2018,Office Stationery,Finance Directorate,Xma Ltd,H57720180907doyjcvadi,272.42,Not Applicable
Department for Business Energy and Industrial Strategy,Intellectual Property Office,05/09/2018,Office Stationery,Finance Directorate,Xma Ltd,H57720180907ojmtjyvng,319.92,Not Applicable
Department for Business Energy and Industrial Strategy,Intellectual Property Office,05/09/2018,Network and infrastructure H/W,IT Directorate,Amzn Mktp Uk,H57720180907szqqqcsiu,69.95,Not Applicable
Department for Business Energy and Industrial Strategy,Intellectual Property Office,05/09/2018,Minor Works-Goods,People Places & Serv Directorate,South Wales Suppliers,H57720180907sjmbhmwcr,48.00,Not Applicable
Department for Business Energy and Industrial Strategy,Intellectual Property Office,06/09/2018,Placement Fees,Patent Directorate,Www.Soton.Ac.Uk,H57720180911pdcfrnbdx,714.00,Not Applicable
Department for Business Energy and Industrial Strategy,Intellectual Property Office,06/09/2018,Office Stationery,Finance Directorate,Xma Ltd,H57720180908quannkwle,25.78,Not Applicable
Department for Business Energy and Industrial Strategy,Intellectual Property Office,06/09/2018,T&S O-seas excl EPOQUE,People Places & Serv Directorate,Easyjet,H57720180908tnvtiwnvv,131.90,Not Applicable
Department for Business Energy and Industrial Strategy,Intellectual Property Office,06/09/2018,Career Development Services,People Places & Serv Directorate,Tesco-Stores 6225,H57720180908jhlctbwbn,18.47,Not Applicable
Department for Business Energy and Industrial Strategy,Intellectual Property Office,06/09/2018,Career Development Services,Patent Directorate,Whitehall & Indust,H57720180911rlpfeooiz,540.00,Not Applicable
Department for Business Energy and Industrial Strategy,Intellectual Property Office,06/09/2018,Entertainment,People Places & Serv Directorate,Subway,H57720180908torecqxnu,20.40,Not Applicable
Department for Business Energy and Industrial Strategy,Intellectual Property Office,07/09/2018,Office Stationery,People Places & Serv Directorate,Amzn Mktp Uk,H57720180911faltnirhd,35.00,Not Applicable
Department for Business Energy and Industrial Strategy,Intellectual Property Office,07/09/2018,Office Stationery,People Places & Serv Directorate,Amzn Mktp Uk,H57720180911sskonaxal,32.60,Not Applicable
Department for Business Energy and Industrial Strategy,Intellectual Property Office,07/09/2018,Entertainment,People Places & Serv Directorate,Asda Superstore 4928,H57720180911ibojfjlae,28.87,Not Applicable
Department for Business Energy and Industrial Strategy,Intellectual Property Office,08/09/2018,Books,Trade Mark Directorate,The Intellectual Property,H57720180911kvxwzloud,50.00,Not Applicable
Department for Business Energy and Industrial Strategy,Intellectual Property Office,08/09/2018,Books,Trade Mark Directorate,The Intellectual Property,H57720180911xokbmttwp,170.00,Not Applicable
Department for Business Energy and Industrial Strategy,Intellectual Property Office,09/09/2018,Office Stationery,People Places & Serv Directorate,Amazon.Co.Uk,H57720180911tqvqhhlye,33.41,Not Applicable
Department for Business Energy and Industrial Strategy,Intellectual Property Office,09/09/2018,Career Development Services,People Places & Serv Directorate,Tesco Stores 2931,H57720180911kyvktyxcw,21.00,Not Applicable
Department for Business Energy and Industrial Strategy,Intellectual Property Office,10/09/2018,Steering Board,People Places & Serv Directorate,Grange Wellington,H57720180913gygifcvvy,500.00,Not Applicable
Department for Business Energy and Industrial Strategy,Intellectual Property Office,10/09/2018,Steering Board,People Places & Serv Directorate,Grange Wellington,H57720180913rbwmbhvgr,50.00,Not Applicable
Department for Business Energy and Industrial Strategy,Intellectual Property Office,10/09/2018,Steering Board,People Places & Serv Directorate,Grange Wellington,H57720180913ubhnbbxwf,500.00,Not Applicable
Department for Business Energy and Industrial Strategy,Intellectual Property Office,10/09/2018,Steering Board,People Places & Serv Directorate,Office For National St,H57720180912ledseqhgx,7.00,Not Applicable
Department for Business Energy and Industrial Strategy,Intellectual Property Office,10/09/2018,Other,People Places & Serv Directorate,Www.Hfx.Co.Uk,H57720180912bxkecbdcx,510.00,Not Applicable
Department for Business Energy and Industrial Strategy,Intellectual Property Office,10/09/2018,Steering Board,People Places & Serv Directorate,Office For National St,H57720180912ybtoclfrs,0.65,Not Applicable
Department for Business Energy and Industrial Strategy,Intellectual Property Office,10/09/2018,Office Stationery,Finance Directorate,Www.Ukpos.Com,H57720180912jhyynmgml,123.26,Not Applicable
Department for Business Energy and Industrial Strategy,Intellectual Property Office,11/09/2018,Entertainment,Copyright and Enforcement Directorate,Wrexham Cbc Auto P,H57720180913uqegoyysu,175.00,Not Applicable
Department for Business Energy and Industrial Strategy,Intellectual Property Office,11/09/2018,Steering Board,People Places & Serv Directorate,Office For National St,H57720180913chgfilrqg,4.40,Not Applicable
Department for Business Energy and Industrial Strategy,Intellectual Property Office,11/09/2018,Steering Board,People Places & Serv Directorate,Office For National St,H57720180913gjddhgcrc,0.65,Not Applicable
Department for Business Energy and Industrial Strategy,Intellectual Property Office,11/09/2018,Entertainment,Finance Directorate,Amzn Mktp Uk,H57720180913tpibudmvu,9.49,Not Applicable
Department for Business Energy and Industrial Strategy,Intellectual Property Office,11/09/2018,Office Stationery,People Places & Serv Directorate,Www.Sliderz.Co.Uk,H57720180913cscdnjslc,188.90,Not Applicable
Department for Business Energy and Industrial Strategy,Intellectual Property Office,11/09/2018,Office Stationery,People Places & Serv Directorate,Tg Howell,H57720180913xjwykwzmx,147.36,Not Applicable
Department for Business Energy and Industrial Strategy,Intellectual Property Office,11/09/2018,Career Development Services,People Places & Serv Directorate,Amzn Mktp Uk,H57720180913qerisjzba,23.94,Not Applicable
Department for Business Energy and Industrial Strategy,Intellectual Property Office,11/09/2018,Overseas Patent Specifications,Patent Directorate,Wiley Article Pdf,H57720180913clqquzvww,36.21,Not Applicable
Department for Business Energy and Industrial Strategy,Intellectual Property Office,11/09/2018,Career Development Services,IT Directorate,Cim,H57720180913hxtbycmyy,15.00,Not Applicable
Department for Business Energy and Industrial Strategy,Intellectual Property Office,12/09/2018,Office Stationery,Finance Directorate,Xma Ltd,H57720180914turswnwdj,473.47,Not Applicable
Department for Business Energy and Industrial Strategy,Intellectual Property Office,12/09/2018,Entertainment,Finance Directorate,Amazon.Co.Uk,H57720180914fwpxobjwz,21.49,Not Applicable
Department for Business Energy and Industrial Strategy,Intellectual Property Office,12/09/2018,Office Stationery,People Places & Serv Directorate,Www.Officefurnitureonl,H57720180914jpyeavyvx,606.00,Not Applicable
Department for Business Energy and Industrial Strategy,Intellectual Property Office,12/09/2018,Advertising Distribution,Innovation Directorate,Eb *cipr Cymru Autumn,H57720180914syqypzaeg,72.00,Not Applicable
Department for Business Energy and Industrial Strategy,Intellectual Property Office,12/09/2018,Books,Patent Directorate,Amzn Mktp Uk,H57720180914jjbkmhxei,18.24,Not Applicable
Department for Business Energy and Industrial Strategy,Intellectual Property Office,12/09/2018,Network and infrastructure H/W,People Places & Serv Directorate,Paypal,H57720180914ehuevvyaq,5.99,Not Applicable
Department for Business Energy and Industrial Strategy,Intellectual Property Office,12/09/2018,Network and infrastructure H/W,People Places & Serv Directorate,Paypal,H57720180914obkeoxlxk,19.50,Not Applicable
Department for Business Energy and Industrial Strategy,Intellectual Property Office,12/09/2018,Network and infrastructure H/W,People Places & Serv Directorate,Paypal,H57720180914ovxpmbrhh,5.00,Not Applicable
Department for Business Energy and Industrial Strategy,Intellectual Property Office,12/09/2018,Network and infrastructure H/W,People Places & Serv Directorate,Paypal,H57720180914tvcqmxwde,8.47,Not Applicable
Department for Business Energy and Industrial Strategy,Intellectual Property Office,12/09/2018,Career Development Services,People Places & Serv Directorate,Cim,H57720180914xlnzfpotc,15.00,Not Applicable
Department for Business Energy and Industrial Strategy,Intellectual Property Office,13/09/2018,Office Stationery,People Places & Serv Directorate,Construction Materials,H57720180915ukahyrwis,667.56,Not Applicable
Department for Business Energy and Industrial Strategy,Intellectual Property Office,13/09/2018,Advertising Distribution,Innovation Directorate,Www.Pret.Com,H57720180915begkfkyka,85.76,Not Applicable
Department for Business Energy and Industrial Strategy,Intellectual Property Office,13/09/2018,Advertising Distribution,Innovation Directorate,Www.Pret.Com,H57720180915lclswlbbp,85.76,Not Applicable
Department for Business Energy and Industrial Strategy,Intellectual Property Office,13/09/2018,Advertising Distribution,Innovation Directorate,Www.Pret.Com,H57720180915qvymkwqsd,85.76,Not Applicable
Department for Business Energy and Industrial Strategy,Intellectual Property Office,13/09/2018,Books,Trade Mark Directorate,The Intellectual Property,H57720180915omguapepf,-50.00,Not Applicable
Department for Business Energy and Industrial Strategy,Intellectual Property Office,13/09/2018,Books,Trade Mark Directorate,The Intellectual Property,H57720180915ulgeidnyt,-170.00,Not Applicable
Department for Business Energy and Industrial Strategy,Intellectual Property Office,14/09/2018,Placement Fees,Patent Directorate,Uni Cam Esales,H57720180918cufkheepo,1062.00,Not Applicable
Department for Business Energy and Industrial Strategy,Intellectual Property Office,14/09/2018,Placement Fees,Patent Directorate,Www.Liverpool.Ac.Uk,H57720180918iehjzwyqy,720.00,Not Applicable
Department for Business Energy and Industrial Strategy,Intellectual Property Office,14/09/2018,Career Development Services,People Places & Serv Directorate,Subway,H57720180918okhgvrksg,54.00,Not Applicable
Department for Business Energy and Industrial Strategy,Intellectual Property Office,14/09/2018,Office Stationery,People Places & Serv Directorate,Cardiff Signs Ltd,H57720180918vvmhrzkcs,854.40,Not Applicable
Department for Business Energy and Industrial Strategy,Intellectual Property Office,15/09/2018,Career Development Services,IT Directorate,Aldi 40 780,H57720180918arskinivf,19.76,Not Applicable
Department for Business Energy and Industrial Strategy,Intellectual Property Office,15/09/2018,Career Development Services,People Places & Serv Directorate,Eb *menopause For Busi,H57720180918woyrrwdwe,151.51,Not Applicable
Department for Business Energy and Industrial Strategy,Intellectual Property Office,16/09/2018,Network and infrastructure H/W,IT Directorate,Amazon.Co.Uk Amazon.Co.Uk,H57720180919igidhsrjg,659.52,Not Applicable
Department for Business Energy and Industrial Strategy,Intellectual Property Office,16/09/2018,Seminars and Confereces,People Places & Serv Directorate,Przcharge.Prezi.Com,H57720180918woglzscnb,15.60,Not Applicable
Department for Business Energy and Industrial Strategy,Intellectual Property Office,16/09/2018,Other,People Places & Serv Directorate,Asda Superstore 4928,H57720180918vjyhgdriv,8.50,Not Applicable
Department for Business Energy and Industrial Strategy,Intellectual Property Office,17/09/2018,Steering Board,People Places & Serv Directorate,Marks&spencer Plc,H57720180919opqudgfvk,75.55,Not Applicable
Department for Business Energy and Industrial Strategy,Intellectual Property Office,17/09/2018,Fixed Telecoms Equipment,IT Directorate,Www.Meetingzone.Com,H57720180919qmhiqrolc,740.05,Not Applicable
Department for Business Energy and Industrial Strategy,Intellectual Property Office,17/09/2018,Office Stationery,People Places & Serv Directorate,Www.Officefurnitureonl,H57720180919vgpnppzfp,606.00,Not Applicable
Department for Business Energy and Industrial Strategy,Intellectual Property Office,17/09/2018,Office Stationery,People Places & Serv Directorate,Amzn Mktp Uk,H57720180919xuvgijxgq,46.49,Not Applicable
Department for Business Energy and Industrial Strategy,Intellectual Property Office,17/09/2018,Advertising Distribution,Innovation Directorate,Twitonomy.Com,H57720180919cxuolsmxa,14.98,Not Applicable
Department for Business Energy and Industrial Strategy,Intellectual Property Office,17/09/2018,Network and infrastructure H/W,IT Directorate,Amazon.Co.Uk Amazon.Co.Uk,H57720180920dyvcternh,659.52,Not Applicable
Department for Business Energy and Industrial Strategy,Intellectual Property Office,17/09/2018,Seminars and Confereces,People Places & Serv Directorate,Cim,H57720180920denhsjsum,-15.00,Not Applicable
Department for Business Energy and Industrial Strategy,Intellectual Property Office,17/09/2018,Seminars and Confereces,People Places & Serv Directorate,Eventhalo/Applyandpay,H57720180919fvmnhfjsq,12.49,Not Applicable
Department for Business Energy and Industrial Strategy,Intellectual Property Office,18/09/2018,Steering Board,People Places & Serv Directorate,Office For National St,H57720180920xagxupime,0.65,Not Applicable
Department for Business Energy and Industrial Strategy,Intellectual Property Office,18/09/2018,Advertising Distribution,Innovation Directorate,Showlite Ltd,H57720180920htlaqghst,242.64,Not Applicable
Department for Business Energy and Industrial Strategy,Intellectual Property Office,18/09/2018,Advertising Distribution,Innovation Directorate,Thornsgroup.Co.Uk,H57720180920lsfblloen,154.80,Not Applicable
Department for Business Energy and Industrial Strategy,Intellectual Property Office,18/09/2018,Career Development Services,Finance Directorate,Www.Cips.Org,H57720180920dpldipoqo,210.00,Not Applicable
Department for Business Energy and Industrial Strategy,Intellectual Property Office,18/09/2018,Career Development Services,Finance Directorate,Www.Cips.Org,H57720180920ewxlgubuv,210.00,Not Applicable
Department for Business Energy and Industrial Strategy,Intellectual Property Office,18/09/2018,Office Stationery,People Places & Serv Directorate,Screwfix Direct,H57720180920cnhzmcmtl,195.96,Not Applicable
Department for Business Energy and Industrial Strategy,Intellectual Property Office,18/09/2018,Office Stationery,People Places & Serv Directorate,Www.Officefurnitureonl,H57720180920hiypxaopr,606.00,Not Applicable
Department for Business Energy and Industrial Strategy,Intellectual Property Office,18/09/2018,Office Stationery,People Places & Serv Directorate,Www.Officefurnitureonl,H57720180920lnejhkhjx,484.80,Not Applicable
Department for Business Energy and Industrial Strategy,Intellectual Property Office,18/09/2018,Books,Patent Directorate,British Standards,H57720180920mhlyvfkxt,570.00,Not Applicable
Department for Business Energy and Industrial Strategy,Intellectual Property Office,18/09/2018,Steering Board,People Places & Serv Directorate,Tesco Stores 5177,H57720180920dyqzqnbie,3.45,Not Applicable
Department for Business Energy and Industrial Strategy,Intellectual Property Office,18/09/2018,Overseas Patent Specifications,Patent Directorate,Informa UK Ecom Gb,H57720180920rnjfttpyi,45.60,Not Applicable
Department for Business Energy and Industrial Strategy,Intellectual Property Office,18/09/2018,Seminars and Confereces,People Places & Serv Directorate,Hancocks Cash & Carry,H57720180920axgoojmzm,28.50,Not Applicable
Department for Business Energy and Industrial Strategy,Intellectual Property Office,18/09/2018,T&S UK,People Places & Serv Directorate,Bristol Airport Limite,H57720180920yijnkagox,122.99,Not Applicable
Department for Business Energy and Industrial Strategy,Intellectual Property Office,18/09/2018,Office Stationery,People Places & Serv Directorate,Uktranscription.Com,H57720180920yzvyolkhs,47.70,Not Applicable
Department for Business Energy and Industrial Strategy,Intellectual Property Office,19/09/2018,Career Development Services,IT Directorate,Asda Superstore 4928,H57720180921euviqwnuq,87.22,Not Applicable
Department for Business Energy and Industrial Strategy,Intellectual Property Office,19/09/2018,Office Stationery,People Places & Serv Directorate,Screwfix Direct,H57720180921kiqmmcdsp,168.54,Not Applicable
Department for Business Energy and Industrial Strategy,Intellectual Property Office,19/09/2018,Office Stationery,People Places & Serv Directorate,Amzn Mktp Uk,H57720180921ulyvetsbg,6.99,Not Applicable
Department for Business Energy and Industrial Strategy,Intellectual Property Office,19/09/2018,Office Stationery,Finance Directorate,Amzn Mktp Uk,H57720180921eszqhyies,10.48,Not Applicable
Department for Business Energy and Industrial Strategy,Intellectual Property Office,20/09/2018,T&S UK,People Places & Serv Directorate,Office For National St,H57720180922erdoebjvo,9.10,Not Applicable
Department for Business Energy and Industrial Strategy,Intellectual Property Office,21/09/2018,T&S O-seas excl EPOQUE,People Places & Serv Directorate,Lufthansa,H57720180929cfvedsjyc,326.04,Not Applicable
Department for Business Energy and Industrial Strategy,Intellectual Property Office,21/09/2018,Network and infrastructure H/W,IT Directorate,Amazon Prime,H57720180925zpusmnhnl,79.00,Not Applicable
Department for Business Energy and Industrial Strategy,Intellectual Property Office,21/09/2018,Entertainment,People Places & Serv Directorate,Www.Uk.Edensprings.Com,H57720180925ecrishmig,48.12,Not Applicable
Department for Business Energy and Industrial Strategy,Intellectual Property Office,24/09/2018,Career Development Services,IT Directorate,B & M Retail,H57720180926amrbvxksv,68.22,Not Applicable
Department for Business Energy and Industrial Strategy,Intellectual Property Office,24/09/2018,Overseas Patent Specifications,Patent Directorate,Cambridge University Pres,H57720180926rqttmcttm,30.00,Not Applicable
Department for Business Energy and Industrial Strategy,Intellectual Property Office,24/09/2018,Office Stationery,People Places & Serv Directorate,Www.Thewaterdeliveryco,H57720180926gwgwrlhqj,408.00,Not Applicable
Department for Business Energy and Industrial Strategy,Intellectual Property Office,24/09/2018,Seminars and Confereces,People Places & Serv Directorate,Coveritlive Scribbl Cov,H57720180926iqttfhijs,38.65,Not Applicable
Department for Business Energy and Industrial Strategy,Intellectual Property Office,24/09/2018,Other,People Places & Serv Directorate,Asda Superstore 4928,H57720180926egblkssxc,28.58,Not Applicable
Department for Business Energy and Industrial Strategy,Intellectual Property Office,25/09/2018,Career Development Services,IT Directorate,Amzn Mktp Uk,H57720180927rikonxbdt,32.99,Not Applicable
Department for Business Energy and Industrial Strategy,Intellectual Property Office,25/09/2018,Career Development Services,IT Directorate,Amazon.Co.Uk,H57720180927subtefzmv,8.25,Not Applicable
Department for Business Energy and Industrial Strategy,Intellectual Property Office,25/09/2018,Office Stationery,People Places & Serv Directorate,Amzn Mktp Uk,H57720180927blqdmodpg,21.75,Not Applicable
Department for Business Energy and Industrial Strategy,Intellectual Property Office,25/09/2018,Advertising Distribution,Innovation Directorate,Www.Pret.Com,H57720180927rsqwdqoru,36.00,Not Applicable
Department for Business Energy and Industrial Strategy,Intellectual Property Office,25/09/2018,Network and infrastructure H/W,People Places & Serv Directorate,Tesco-Stores 6459,H57720180927vkmzncriy,4.00,Not Applicable
Department for Business Energy and Industrial Strategy,Intellectual Property Office,25/09/2018,Career Development Services,People Places & Serv Directorate,Yes Im A Designer Lim,H57720180927wdfyzteyv,14.94,Not Applicable
Department for Business Energy and Industrial Strategy,Intellectual Property Office,25/09/2018,Other,People Places & Serv Directorate,Asda Superstore 4928,H57720180927lcziwitge,25.65,Not Applicable
Department for Business Energy and Industrial Strategy,Intellectual Property Office,26/09/2018,Steering Board,People Places & Serv Directorate,Amzn Mktp Uk,H57720180928xvjzwqqwm,6.72,Not Applicable
Department for Business Energy and Industrial Strategy,Intellectual Property Office,26/09/2018,Career Development Services,IT Directorate,Amzn Mktp Uk,H57720180928dyyjpkwbb,2.40,Not Applicable
Department for Business Energy and Industrial Strategy,Intellectual Property Office,26/09/2018,Career Development Services,IT Directorate,Amzn Mktp Uk,H57720180928fokqpbier,1.99,Not Applicable
Department for Business Energy and Industrial Strategy,Intellectual Property Office,26/09/2018,Career Development Services,IT Directorate,Asda Superstore 4928,H57720180928vickrwxjz,7.55,Not Applicable
Department for Business Energy and Industrial Strategy,Intellectual Property Office,26/09/2018,Career Development Services,People Places & Serv Directorate,Eb *intermediate Digit,H57720180928pmrqsmvsw,300.00,Not Applicable
Department for Business Energy and Industrial Strategy,Intellectual Property Office,26/09/2018,Network and infrastructure H/W,IT Directorate,Amzn Mktp UK Amazon.Co.Uk,H57720180929usmhjfqtz,35.96,Not Applicable
Department for Business Energy and Industrial Strategy,Intellectual Property Office,26/09/2018,Career Development Services,Patent Directorate,Soc Of Chem Ind/in,H57720180928kiccixyhg,260.00,Not Applicable
Department for Business Energy and Industrial Strategy,Intellectual Property Office,26/09/2018,Books,Patent Directorate,Lawtext Publishing Ltd,H57720180928htduescyd,523.00,Not Applicable
Department for Business Energy and Industrial Strategy,Intellectual Property Office,26/09/2018,Insurance Services,People Places & Serv Directorate,Towergate Prof. Risks,H57720180928yftwofxad,214.77,Not Applicable
Department for Business Energy and Industrial Strategy,Intellectual Property Office,26/09/2018,Other,People Places & Serv Directorate,Sp * Museum Of Brands,H57720180928cqhlnhspf,18.94,Not Applicable
Department for Business Energy and Industrial Strategy,Intellectual Property Office,26/09/2018,Other,People Places & Serv Directorate,Asda Superstore 4928,H57720180928lcymtgfpq,32.28,Not Applicable
Department for Business Energy and Industrial Strategy,Intellectual Property Office,19/09/2018,Travel & Subsistence,Copyright and Enforcement Directorate,Personal expenses,OS000000762,623.06,Not Applicable
Department for Business Energy and Industrial Strategy,Intellectual Property Office,05/09/2018,Pay Costs,Patent Directorate,Acorn Recruitment Ltd,886036,521.21,Not Applicable
Department for Business Energy and Industrial Strategy,Intellectual Property Office,05/09/2018,Pay Costs,Patent Directorate,Acorn Recruitment Ltd,886037,633.22,Not Applicable
Department for Business Energy and Industrial Strategy,Intellectual Property Office,20/09/2018,Pay Costs,Patent Directorate,Acorn Recruitment Ltd,887497,647.56,Not Applicable
Department for Business Energy and Industrial Strategy,Intellectual Property Office,06/09/2018,Office Supplies,Finance Directorate,Banner Group Limited,2429173,"1,003.50",Not Applicable
Department for Business Energy and Industrial Strategy,Intellectual Property Office,25/09/2018,Information Technology,Projects,MS MODERNISATION LTD,104160093,"120,120.00",Not Applicable
Department for Business Energy and Industrial Strategy,Intellectual Property Office,25/09/2018,Information Technology,Projects,MS MODERNISATION LTD,204160008,"-120,120.00",Not Applicable
Department for Business Energy and Industrial Strategy,Intellectual Property Office,12/09/2018,Telecoms,IT Directorate,British  Telecom,BMSID5718-04SEP,"3,056.23",Not Applicable
Department for Business Energy and Industrial Strategy,Intellectual Property Office,19/09/2018,Telecoms,IT Directorate,British  Telecom,M20101-13SEP18,"4,515.13",Not Applicable
Department for Business Energy and Industrial Strategy,Intellectual Property Office,11/09/2018,Telecoms,IT Directorate,British  Telecom,Q003-IZ-05SEP18,"8,935.78",Not Applicable
Department for Business Energy and Industrial Strategy,Intellectual Property Office,06/09/2018,Office Supplies,Innovation Directorate,British Library,139804013,"2,398.18",Not Applicable
Department for Business Energy and Industrial Strategy,Intellectual Property Office,12/09/2018,Miscellaneous Expenses General,People Places & Serv Directorate,Cabinet Office,3724081,604.80,Not Applicable
Department for Business Energy and Industrial Strategy,Intellectual Property Office,04/09/2018,Staff Costs,IT Directorate,Cabinet Office,3724859,"17,078.34",Not Applicable
Department for Business Energy and Industrial Strategy,Intellectual Property Office,10/09/2018,Miscellaneous Expenses General,People Places & Serv Directorate,Capital Law LLP,60002498,"9,197.40",Not Applicable
Department for Business Energy and Industrial Strategy,Intellectual Property Office,13/09/2018,Staff Costs,People Places & Serv Directorate,Computeraid Ltd,21665,798.00,Not Applicable
Department for Business Energy and Industrial Strategy,Intellectual Property Office,06/09/2018,Staff Costs,Finance Directorate,Computeraid Ltd,21689,672.00,Not Applicable
Department for Business Energy and Industrial Strategy,Intellectual Property Office,20/09/2018,Staff Costs,People Places & Serv Directorate,Computeraid Ltd,21698,678.00,Not Applicable
Department for Business Energy and Industrial Strategy,Intellectual Property Office,12/09/2018,Accommodation,People Places & Serv Directorate,Corona Energy,13362927,"1,010.15",Not Applicable
Department for Business Energy and Industrial Strategy,Intellectual Property Office,12/09/2018,Supporting UK Business,Innovation Directorate,Creation IP Ltd,IV3240,"2,500.00",Not Applicable
Department for Business Energy and Industrial Strategy,Intellectual Property Office,17/09/2018,Supporting UK Business,Innovation Directorate,Creation IP Ltd,IV3258,"2,500.00",Not Applicable
Department for Business Energy and Industrial Strategy,Intellectual Property Office,07/09/2018,Postage & Delivery Costs,People Places & Serv Directorate,DHL International (UK) Ltd,BRS1808563,793.34,Not Applicable
Department for Business Energy and Industrial Strategy,Intellectual Property Office,12/09/2018,Postage & Delivery Costs,People Places & Serv Directorate,DHL International (UK) Ltd,BRS1832739,"1,146.38",Not Applicable
Department for Business Energy and Industrial Strategy,Intellectual Property Office,20/09/2018,Postage & Delivery Costs,People Places & Serv Directorate,DHL International (UK) Ltd,BRS1851556,"2,000.03",Not Applicable
Department for Business Energy and Industrial Strategy,Intellectual Property Office,26/09/2018,Postage & Delivery Costs,People Places & Serv Directorate,DHL International (UK) Ltd,BRS1869747,"2,382.89",Not Applicable
Department for Business Energy and Industrial Strategy,Intellectual Property Office,13/09/2018,Staff Costs,People Places & Serv Directorate,Dod's Parliamentary Communications,PK0126820,"1,770.00",Not Applicable
Department for Business Energy and Industrial Strategy,Intellectual Property Office,04/09/2018,Accommodation,People Places & Serv Directorate,Pro Investments Limited,121640,"1,718.27",Not Applicable
Department for Business Energy and Industrial Strategy,Intellectual Property Office,06/09/2018,Accommodation,People Places & Serv Directorate,Pro Investments Limited,122247,"22,594.84",Not Applicable
Department for Business Energy and Industrial Strategy,Intellectual Property Office,24/09/2018,Staff Costs,People Places & Serv Directorate,Hays Specialist Recruitment,1008973889,"1,620.00",Not Applicable
Department for Business Energy and Industrial Strategy,Intellectual Property Office,26/09/2018,Information Technology,IT Directorate,Insight Direct (UK) Ltd,4055456,"3,427.20",Not Applicable
Department for Business Energy and Industrial Strategy,Intellectual Property Office,27/09/2018,Information Technology,IT Directorate,Insight Direct (UK) Ltd,4068009,"13,950.00",Not Applicable
Department for Business Energy and Industrial Strategy,Intellectual Property Office,03/09/2018,Supporting UK Business,Innovation Directorate,IP Pragmatics,2129,"2,500.00",Not Applicable
Department for Business Energy and Industrial Strategy,Intellectual Property Office,12/09/2018,Information Technology,IT Directorate,LA International Computer Consulta,LA502863,"-2,400.52",Not Applicable
Department for Business Energy and Industrial Strategy,Intellectual Property Office,03/09/2018,Information Technology,IT Directorate,LA International Computer Consulta,LA509904,"1,849.78",Not Applicable
Department for Business Energy and Industrial Strategy,Intellectual Property Office,03/09/2018,Information Technology,IT Directorate,LA International Computer Consulta,LA509905,"3,146.88",Not Applicable
Department for Business Energy and Industrial Strategy,Intellectual Property Office,07/09/2018,Information Technology,IT Directorate,LA International Computer Consulta,LA510811,"3,146.88",Not Applicable
Department for Business Energy and Industrial Strategy,Intellectual Property Office,07/09/2018,Information Technology,IT Directorate,LA International Computer Consulta,LA511259,"1,795.62",Not Applicable
Department for Business Energy and Industrial Strategy,Intellectual Property Office,12/09/2018,Information Technology,IT Directorate,LA International Computer Consulta,LA511492,"2,517.50",Not Applicable
Department for Business Energy and Industrial Strategy,Intellectual Property Office,13/09/2018,Information Technology,IT Directorate,LA International Computer Consulta,LA511987,"1,383.32",Not Applicable
Department for Business Energy and Industrial Strategy,Intellectual Property Office,20/09/2018,Information Technology,IT Directorate,LA International Computer Consulta,LA512901,"2,281.75",Not Applicable
Department for Business Energy and Industrial Strategy,Intellectual Property Office,20/09/2018,Information Technology,IT Directorate,LA International Computer Consulta,LA512902,"3,146.88",Not Applicable
Department for Business Energy and Industrial Strategy,Intellectual Property Office,28/09/2018,Information Technology,IT Directorate,LA International Computer Consulta,LA513590,"2,307.60",Not Applicable
Department for Business Energy and Industrial Strategy,Intellectual Property Office,28/09/2018,Information Technology,IT Directorate,LA International Computer Consulta,LA513591,"3,146.88",Not Applicable
Department for Business Energy and Industrial Strategy,Intellectual Property Office,18/09/2018,Travel & Subsistence,People Places & Serv Directorate,Zenith,115500,"1,033.20",Not Applicable
Department for Business Energy and Industrial Strategy,Intellectual Property Office,13/09/2018,Legal & Hearings,Trade Mark Directorate,Marten Walsh Cherer Ltd,100926,603.53,Not Applicable
Department for Business Energy and Industrial Strategy,Intellectual Property Office,21/09/2018,Postage & Delivery Costs,People Places & Serv Directorate,Neopost Finance Ltd,NE900335 SEP-18,"10,000.00",Not Applicable
Department for Business Energy and Industrial Strategy,Intellectual Property Office,14/09/2018,Accommodation,People Places & Serv Directorate,Office for National Statistics,2158022,"115,538.40",Not Applicable
Department for Business Energy and Industrial Strategy,Intellectual Property Office,14/09/2018,Accommodation,People Places & Serv Directorate,Office for National Statistics,2158022,"275,914.45",Not Applicable
Department for Business Energy and Industrial Strategy,Intellectual Property Office,14/09/2018,Accommodation,People Places & Serv Directorate,Office for National Statistics,2158022,"47,246.40",Not Applicable
Department for Business Energy and Industrial Strategy,Intellectual Property Office,25/09/2018,Accommodation,People Places & Serv Directorate,Office for National Statistics,2178022,"128,109.90",Not Applicable
Department for Business Energy and Industrial Strategy,Intellectual Property Office,25/09/2018,Accommodation,People Places & Serv Directorate,Office for National Statistics,2178022,"96,590.02",Not Applicable
Department for Business Energy and Industrial Strategy,Intellectual Property Office,25/09/2018,Accommodation,People Places & Serv Directorate,Office for National Statistics,2178022,"-10,499.09",Not Applicable
Department for Business Energy and Industrial Strategy,Intellectual Property Office,25/09/2018,Accommodation,People Places & Serv Directorate,Office for National Statistics,2178022,"15,611.29",Not Applicable
Department for Business Energy and Industrial Strategy,Intellectual Property Office,25/09/2018,Accommodation,People Places & Serv Directorate,Office for National Statistics,2178022,"-10,462.50",Not Applicable
Department for Business Energy and Industrial Strategy,Intellectual Property Office,20/09/2018,Postage & Delivery Costs,People Places & Serv Directorate,Parcelforce Worldwide,9057356331,"1,256.79",Not Applicable
Department for Business Energy and Industrial Strategy,Intellectual Property Office,18/09/2018,Information Technology,IT Directorate,QA Ltd,QACI003304,"24,708.00",Not Applicable
Department for Business Energy and Industrial Strategy,Intellectual Property Office,18/09/2018,Information Technology,IT Directorate,QA Ltd,QACI003439,"28,188.00",Not Applicable
Department for Business Energy and Industrial Strategy,Intellectual Property Office,04/09/2018,Postage & Delivery Costs,People Places & Serv Directorate,Royal Mail,9057229202,"1,432.36",Not Applicable
Department for Business Energy and Industrial Strategy,Intellectual Property Office,20/09/2018,Postage & Delivery Costs,People Places & Serv Directorate,Royal Mail,9057320644,"1,876.60",Not Applicable
Department for Business Energy and Industrial Strategy,Intellectual Property Office,13/09/2018,Accommodation,People Places & Serv Directorate,Senator International Ltd,S01474994,"2,223.60",Not Applicable
Department for Business Energy and Industrial Strategy,Intellectual Property Office,11/09/2018,Information Technology,IT Directorate,Softcat Ltd,INV01996914,"493,196.35",Not Applicable
Department for Business Energy and Industrial Strategy,Intellectual Property Office,20/09/2018,Information Technology,IT Directorate,Specialist Computer Centres Plc,OP-M448653,"7,047.54",Not Applicable
Department for Business Energy and Industrial Strategy,Intellectual Property Office,11/09/2018,Information Technology,IT Directorate,Specialist Computer Centres Plc,OP-M475010,"1,412.52",Not Applicable
Department for Business Energy and Industrial Strategy,Intellectual Property Office,20/09/2018,Information Technology,IT Directorate,Specialist Computer Centres Plc,OP-M482345,"44,343.72",Not Applicable
Department for Business Energy and Industrial Strategy,Intellectual Property Office,11/09/2018,Information Technology,IT Directorate,Specialist Computer Centres Plc,OP-M483624,"5,078.09",Not Applicable
Department for Business Energy and Industrial Strategy,Intellectual Property Office,10/09/2018,Information Technology,IT Directorate,Specialist Computer Centres Plc,OP-M485366,"1,128.32",Not Applicable
Department for Business Energy and Industrial Strategy,Intellectual Property Office,28/09/2018,Information Technology,IT Directorate,Specialist Computer Centres Plc,OP-M490974,"18,862.64",Not Applicable
Department for Business Energy and Industrial Strategy,Intellectual Property Office,28/09/2018,Information Technology,IT Directorate,Specialist Computer Centres Plc,OP-M490975,"3,580.38",Not Applicable
Department for Business Energy and Industrial Strategy,Intellectual Property Office,25/09/2018,Information Technology,IT Directorate,Specialist Computer Centres Plc,OP-M491480,"1,205.59",Not Applicable
Department for Business Energy and Industrial Strategy,Intellectual Property Office,05/09/2018,Information Technology,IT Directorate,Trustmarque Solutions Ltd,2275659,"2,596.56",Not Applicable
Department for Business Energy and Industrial Strategy,Intellectual Property Office,14/09/2018,Staff Costs,Patent Directorate,University of  South Wales,OP-I035839,"9,996.00",Not Applicable
Department for Business Energy and Industrial Strategy,Intellectual Property Office,14/09/2018,Staff Costs,Innovation Directorate,University of  South Wales,OP-I035839,"1,428.00",Not Applicable
Department for Business Energy and Industrial Strategy,Intellectual Property Office,14/09/2018,Staff Costs,Patent Directorate,University of  South Wales,OP-I035839,714.00,Not Applicable
Department for Business Energy and Industrial Strategy,Intellectual Property Office,12/09/2018,Staff Costs,Patent Directorate,University of  South Wales,OP-IO35837,"2,856.00",Not Applicable
Department for Business Energy and Industrial Strategy,Intellectual Property Office,12/09/2018,Staff Costs,Patent Directorate,University of  South Wales,OP-IO35838,"14,280.00",Not Applicable
Department for Business Energy and Industrial Strategy,Intellectual Property Office,11/09/2018,Travel & Subsistence,IT Directorate,Veezu Ltd T/A Dragon Taxis (Newpor,6731,51.60,Not Applicable
Department for Business Energy and Industrial Strategy,Intellectual Property Office,11/09/2018,Travel & Subsistence,Innovation Directorate,Veezu Ltd T/A Dragon Taxis (Newpor,6731,46.80,Not Applicable
Department for Business Energy and Industrial Strategy,Intellectual Property Office,11/09/2018,Travel & Subsistence,Copyright and Enforcement Directorate,Veezu Ltd T/A Dragon Taxis (Newpor,6731,9.00,Not Applicable
Department for Business Energy and Industrial Strategy,Intellectual Property Office,11/09/2018,Travel & Subsistence,People Places & Serv Directorate,Veezu Ltd T/A Dragon Taxis (Newpor,6731,65.16,Not Applicable
Department for Business Energy and Industrial Strategy,Intellectual Property Office,11/09/2018,Travel & Subsistence,Patent Directorate,Veezu Ltd T/A Dragon Taxis (Newpor,6731,19.68,Not Applicable
Department for Business Energy and Industrial Strategy,Intellectual Property Office,11/09/2018,Travel & Subsistence,Innovation Directorate,Veezu Ltd T/A Dragon Taxis (Newpor,6731,46.80,Not Applicable
Department for Business Energy and Industrial Strategy,Intellectual Property Office,11/09/2018,Travel & Subsistence,Copyright and Enforcement Directorate,Veezu Ltd T/A Dragon Taxis (Newpor,6731,89.40,Not Applicable
Department for Business Energy and Industrial Strategy,Intellectual Property Office,11/09/2018,Travel & Subsistence,Finance Directorate,Veezu Ltd T/A Dragon Taxis (Newpor,6731,79.20,Not Applicable
Department for Business Energy and Industrial Strategy,Intellectual Property Office,11/09/2018,Travel & Subsistence,International Policy Directorate,Veezu Ltd T/A Dragon Taxis (Newpor,6731,194.64,Not Applicable
Department for Business Energy and Industrial Strategy,Intellectual Property Office,11/09/2018,Travel & Subsistence,Projects,Veezu Ltd T/A Dragon Taxis (Newpor,6731,8.04,Not Applicable
Department for Business Energy and Industrial Strategy,Intellectual Property Office,25/09/2018,Office Machinery,People Places & Serv Directorate,Xerox (UK) Ltd,1608446589,599.98,Not Applicable
Department for Business Energy and Industrial Strategy,Intellectual Property Office,25/09/2018,Office Machinery,People Places & Serv Directorate,Xerox (UK) Ltd,1608446590,"6,050.32",Not Applicable
Department for Business Energy and Industrial Strategy,Intellectual Property Office,25/09/2018,Office Machinery,People Places & Serv Directorate,Xerox (UK) Ltd,1608446591,599.98,Not Applicable
Department for Business Energy and Industrial Strategy,Intellectual Property Office,25/09/2018,Office Machinery,People Places & Serv Directorate,Xerox (UK) Ltd,1608446592,"7,250.86",Not Applicable
Department for Business Energy and Industrial Strategy,Intellectual Property Office,25/09/2018,Office Machinery,People Places & Serv Directorate,Xerox (UK) Ltd,1608446594,"1,617.35",Not Applicable
Department for Business Energy and Industrial Strategy,Intellectual Property Office,25/09/2018,Office Machinery,People Places & Serv Directorate,Xerox (UK) Ltd,1608446595,"1,027.19",Not Applicable
Department for Business Energy and Industrial Strategy,Intellectual Property Office,25/09/2018,Office Machinery,People Places & Serv Directorate,Xerox (UK) Ltd,1608446596,"1,027.19",Not Applicable
Department for Business Energy and Industrial Strategy,Intellectual Property Office,03/09/2018,Marketing & Publicity,Innovation Directorate,Aardman Animations Ltd,36203,820.80,Not Applicable
Department for Business Energy and Industrial Strategy,Intellectual Property Office,10/09/2018,Office Supplies,People Places & Serv Directorate,Antalis Limited,7975739,"2,497.52",Not Applicable
Department for Business Energy and Industrial Strategy,Intellectual Property Office,07/09/2018,Office Supplies,People Places & Serv Directorate,Antalis Limited,7979871,799.50,Not Applicable
Department for Business Energy and Industrial Strategy,Intellectual Property Office,13/09/2018,Office Supplies,People Places & Serv Directorate,Antalis Limited,7997583,799.50,Not Applicable
Department for Business Energy and Industrial Strategy,Intellectual Property Office,24/09/2018,Office Supplies,People Places & Serv Directorate,Antalis Limited,8022707,799.50,Not Applicable
Department for Business Energy and Industrial Strategy,Intellectual Property Office,19/09/2018,Supporting UK Business,Innovation Directorate,Lincoln IP,8666,"2,500.00",Not Applicable
Department for Business Energy and Industrial Strategy,Intellectual Property Office,13/09/2018,Supporting UK Business,Innovation Directorate,Marks & Clerk LLP,7099877,"2,500.00",Not Applicable
Department for Business Energy and Industrial Strategy,Intellectual Property Office,06/09/2018,Supporting UK Business,Innovation Directorate,Marks & Clerk LLP,7099881,"2,500.00",Not Applicable
Department for Business Energy and Industrial Strategy,Intellectual Property Office,26/09/2018,Supporting UK Business,Innovation Directorate,Marks & Clerk LLP,7100912,"2,500.00",Not Applicable
Department for Business Energy and Industrial Strategy,Intellectual Property Office,26/09/2018,Telecoms,IT Directorate,Vodafone Corporate Ltd,89166414,"3,993.07",Not Applicable
Department for Business Energy and Industrial Strategy,Intellectual Property Office,25/09/2018,Staff Costs,International Policy Directorate,Whitehall & Industry Group,2180315,540.00,Not Applicable
Department for Business Energy and Industrial Strategy,Intellectual Property Office,03/09/2018,Supporting UK Business,International Policy Directorate,FOREIGN & COMMONWEALTH OFFICE,1106418,"18,897.79",Not Applicable
Department for Business Energy and Industrial Strategy,Intellectual Property Office,13/09/2018,Supporting UK Business,International Policy Directorate,FOREIGN & COMMONWEALTH OFFICE,1106601,"10,079.91",Not Applicable
Department for Business Energy and Industrial Strategy,Intellectual Property Office,13/09/2018,Supporting UK Business,International Policy Directorate,FOREIGN & COMMONWEALTH OFFICE,1106694,"-3,116.57",Not Applicable
Department for Business Energy and Industrial Strategy,Intellectual Property Office,18/09/2018,Supporting UK Business,International Policy Directorate,FOREIGN & COMMONWEALTH OFFICE,1106831,"2,429.96",Not Applicable
Department for Business Energy and Industrial Strategy,Intellectual Property Office,12/09/2018,Legal & Hearings,Copyright and Enforcement Directorate,HM REVENUE & CUSTOMS,XG006947090857,901.71,Not Applicable
Department for Business Energy and Industrial Strategy,Intellectual Property Office,12/09/2018,Miscellaneous Expenses General,People Places & Serv Directorate,HM REVENUE & CUSTOMS,XG006947090857,"4,880.20",Not Applicable
Department for Business Energy and Industrial Strategy,Intellectual Property Office,11/09/2018,Staff Costs,IT Directorate,GLOBAL KNOWLEDGE NETWORK TRAINING,307280,758.40,Not Applicable
Department for Business Energy and Industrial Strategy,Intellectual Property Office,04/09/2018,Information Technology,IT Directorate,HORNBILL SERVICE MANAGEMENT LIMITE,HSMLI1800171,"31,610.45",Not Applicable
Department for Business Energy and Industrial Strategy,Intellectual Property Office,13/09/2018,Miscellaneous Expenses General,IT Directorate,HORNBILL SERVICE MANAGEMENT LIMITE,INV14258,"2,160.00",Not Applicable
Department for Business Energy and Industrial Strategy,Intellectual Property Office,13/09/2018,Information Technology,IT Directorate,HORNBILL SERVICE MANAGEMENT LIMITE,INV14287,"1,404.00",Not Applicable
Department for Business Energy and Industrial Strategy,Intellectual Property Office,03/09/2018,Supporting UK Business,Innovation Directorate,LAWRIE INTELLECTUAL PROPERTY,112310,"2,500.00",Not Applicable
Department for Business Energy and Industrial Strategy,Intellectual Property Office,20/09/2018,Supporting UK Business,Innovation Directorate,LAWRIE INTELLECTUAL PROPERTY,112469,"2,500.00",Not Applicable
Department for Business Energy and Industrial Strategy,Intellectual Property Office,26/09/2018,Supporting UK Business,Innovation Directorate,LAWRIE INTELLECTUAL PROPERTY,112530,"2,500.00",Not Applicable
Department for Business Energy and Industrial Strategy,Intellectual Property Office,13/09/2018,Supporting UK Business,Innovation Directorate,LAWRIE INTELLECTUAL PROPERTY,112629,"2,500.00",Not Applicable
Department for Business Energy and Industrial Strategy,Intellectual Property Office,03/09/2018,Supporting UK Business,Innovation Directorate,INNGOT LTD,P1808-6,"2,500.00",Not Applicable
Department for Business Energy and Industrial Strategy,Intellectual Property Office,14/09/2018,Supporting UK Business,Innovation Directorate,INNGOT LTD,P1809-1,"2,500.00",Not Applicable
Department for Business Energy and Industrial Strategy,Intellectual Property Office,03/09/2018,Supporting UK Business,Innovation Directorate,STEPHENS SCOWN LLP,98088,"2,500.00",Not Applicable
Department for Business Energy and Industrial Strategy,Intellectual Property Office,06/09/2018,Supporting UK Business,Innovation Directorate,CAMERON INTELLECTUAL PROPERTY LTD,3350-18,"2,500.00",Not Applicable
Department for Business Energy and Industrial Strategy,Intellectual Property Office,26/09/2018,Supporting UK Business,Innovation Directorate,CAMERON INTELLECTUAL PROPERTY LTD,3399-18,"2,500.00",Not Applicable
Department for Business Energy and Industrial Strategy,Intellectual Property Office,10/09/2018,Pay Costs,Finance Directorate,Accountancy Recruitment Wales,100248,592.92,Not Applicable
Department for Business Energy and Industrial Strategy,Intellectual Property Office,10/09/2018,Pay Costs,Finance Directorate,Accountancy Recruitment Wales,100251,628.58,Not Applicable
Department for Business Energy and Industrial Strategy,Intellectual Property Office,11/09/2018,Postage & Delivery Costs,People Places & Serv Directorate,CitySprint (UK) Ltd,2688006,"7,405.31",Not Applicable
Department for Business Energy and Industrial Strategy,Intellectual Property Office,19/09/2018,Miscellaneous Expenses General,IT Directorate,SANDHILL CONSULTANTS LTD,IN4059420,"13,440.00",Not Applicable
Department for Business Energy and Industrial Strategy,Intellectual Property Office,07/09/2018,Accommodation,People Places & Serv Directorate,EDF ENERGY,4714085,"32,048.70",Not Applicable
Department for Business Energy and Industrial Strategy,Intellectual Property Office,11/09/2018,Accommodation,People Places & Serv Directorate,EDF ENERGY,4715877,"1,441.13",Not Applicable
Department for Business Energy and Industrial Strategy,Intellectual Property Office,14/09/2018,Information Technology,IT Directorate,Bytes Software Services Ltd,526733,"15,806.98",Not Applicable
Department for Business Energy and Industrial Strategy,Intellectual Property Office,27/09/2018,Office Machinery,People Places & Serv Directorate,Konica Minolta Business Solutions,1139720909,"9,866.38",Not Applicable
Department for Business Energy and Industrial Strategy,Intellectual Property Office,10/09/2018,Supporting UK Business,Innovation Directorate,S. William Wallace & Co,0070-18,"2,500.00",Not Applicable
Department for Business Energy and Industrial Strategy,Intellectual Property Office,28/09/2018,Supporting UK Business,Innovation Directorate,S. William Wallace & Co,0074-18,"2,500.00",Not Applicable
Department for Business Energy and Industrial Strategy,Intellectual Property Office,20/09/2018,Staff Costs,People Places & Serv Directorate,Sodexo Motivation Solutions UK Ltd,3476148,"13,104.88",Not Applicable
Department for Business Energy and Industrial Strategy,Intellectual Property Office,03/09/2018,Legal & Hearings,Patent Directorate,Government Legal Department,457887,13.39,Not Applicable
Department for Business Energy and Industrial Strategy,Intellectual Property Office,03/09/2018,Legal & Hearings,Trade Mark Directorate,Government Legal Department,457887,"7,056.54",Not Applicable
Department for Business Energy and Industrial Strategy,Intellectual Property Office,13/09/2018,Legal & Hearings,Trade Mark Directorate,Government Legal Department,458853,788.66,Not Applicable
Department for Business Energy and Industrial Strategy,Intellectual Property Office,13/09/2018,Legal & Hearings,Patent Directorate,Government Legal Department,458853,112.50,Not Applicable
Department for Business Energy and Industrial Strategy,Intellectual Property Office,27/09/2018,Legal & Hearings,Copyright and Enforcement Directorate,Government Legal Department,459061,"7,305.43",Not Applicable
Department for Business Energy and Industrial Strategy,Intellectual Property Office,24/09/2018,Supporting UK Business,Innovation Directorate,Thorntons,969632,"2,500.00",Not Applicable
Department for Business Energy and Industrial Strategy,Intellectual Property Office,28/09/2018,Supporting UK Business,Innovation Directorate,Thorntons,970147,"2,500.00",Not Applicable
Department for Business Energy and Industrial Strategy,Intellectual Property Office,11/09/2018,Telecoms,IT Directorate,Personal expenses,UK10-092018-5107,"3,322.08",Not Applicable
Department for Business Energy and Industrial Strategy,Intellectual Property Office,21/09/2018,Office Supplies,Patent Directorate,Euromoney,MK008429 V2,"11,395.20",Not Applicable
Department for Business Energy and Industrial Strategy,Intellectual Property Office,20/09/2018,Miscellaneous Expenses General,Trade Mark Directorate,FCO Services,6066525,"1,500.00",Not Applicable
Department for Business Energy and Industrial Strategy,Intellectual Property Office,27/09/2018,Miscellaneous Expenses General,Trade Mark Directorate,FCO Services,6067162,750.00,Not Applicable
Department for Business Energy and Industrial Strategy,Intellectual Property Office,27/09/2018,Miscellaneous Expenses General,Trade Mark Directorate,FCO Services,6067163,825.00,Not Applicable
Department for Business Energy and Industrial Strategy,Intellectual Property Office,05/09/2018,Supporting UK Business,Innovation Directorate,Murgitroyd & Company Ltd,28188A-18,"2,500.00",Not Applicable
Department for Business Energy and Industrial Strategy,Intellectual Property Office,05/09/2018,Supporting UK Business,Innovation Directorate,Murgitroyd & Company Ltd,28189A-18,"2,500.00",Not Applicable
Department for Business Energy and Industrial Strategy,Intellectual Property Office,12/09/2018,Information Technology,IT Directorate,XMA LIMITED,KK83463,"3,828.00",Not Applicable
Department for Business Energy and Industrial Strategy,Intellectual Property Office,06/09/2018,Supporting UK Business,Innovation Directorate,K. W. Peter & Co,101985,"2,500.00",Not Applicable
Department for Business Energy and Industrial Strategy,Intellectual Property Office,28/09/2018,Information Technology,Patent Directorate,European Patent Office,40281640,"127,305.79",Not Applicable
Department for Business Energy and Industrial Strategy,Intellectual Property Office,19/09/2018,Information Technology,Patent Directorate,European Patent Office,40283340,"126,111.39",Not Applicable
Department for Business Energy and Industrial Strategy,Intellectual Property Office,10/09/2018,Information Technology,IT Directorate,Verisign,520006554,"4,649.64",Not Applicable
Department for Business Energy and Industrial Strategy,Intellectual Property Office,26/09/2018,Information Technology,IT Directorate,Verisign,520006642,"4,569.56",Not Applicable
Department for Business Energy and Industrial Strategy,Intellectual Property Office,20/09/2018,Supporting UK Business,Innovation Directorate,Stannard & Stannard,649,"2,500.00",Not Applicable
Department for Business Energy and Industrial Strategy,Intellectual Property Office,12/09/2018,Miscellaneous Expenses General,People Places & Serv Directorate,Insight Health Screening,7903,"2,130.00",Not Applicable
Department for Business Energy and Industrial Strategy,Intellectual Property Office,07/09/2018,Accommodation,People Places & Serv Directorate,Department of Energy and Climate Change,CRCFP4417535,"28,603.20",Not Applicable
Department for Business Energy and Industrial Strategy,Intellectual Property Office,17/09/2018,Supporting UK Business,Innovation Directorate,Scintilla,INV-01364,"2,500.00",Not Applicable
Department for Business Energy and Industrial Strategy,Intellectual Property Office,14/09/2018,Travel & Subsistence,Trade Mark Directorate,Professor R E Annand,RAAP,554.39,Not Applicable
Department for Business Energy and Industrial Strategy,Intellectual Property Office,26/09/2018,Staff Costs,IT Directorate,Pluralsight,INV02681624,"1,412.13",Not Applicable
Department for Business Energy and Industrial Strategy,Intellectual Property Office,14/09/2018,Information Technology,IT Directorate,Snowbound Software Corporation.,2018-333,"1,249.42",Not Applicable
Department for Business Energy and Industrial Strategy,Intellectual Property Office,27/09/2018,Information Technology,Projects,IBM UNITED KINGDOM LIMITED,5808182076,"10,788.23",Not Applicable
Department for Business Energy and Industrial Strategy,Intellectual Property Office,17/09/2018,Supporting UK Business,Innovation Directorate,Appleyard Lees,134067,"2,500.00",Not Applicable
Department for Business Energy and Industrial Strategy,Intellectual Property Office,28/09/2018,Supporting UK Business,Innovation Directorate,Ellis IP Limited,3425,"2,500.00",Not Applicable
Department for Business Energy and Industrial Strategy,Intellectual Property Office,11/09/2018,Staff Costs,Trade Mark Directorate,Involve Me Training and Developmen,270,"1,200.00",Not Applicable
Department for Business Energy and Industrial Strategy,Intellectual Property Office,10/09/2018,Staff Costs,People Places & Serv Directorate,KPMG LLP (CSL),5501727521,"3,000.00",Not Applicable
Department for Business Energy and Industrial Strategy,Intellectual Property Office,20/09/2018,Staff Costs,People Places & Serv Directorate,KPMG LLP (CSL),5501734792,"3,000.00",Not Applicable
Department for Business Energy and Industrial Strategy,Intellectual Property Office,28/09/2018,Staff Costs,People Places & Serv Directorate,KPMG LLP (CSL),5501746232,"3,369.60",Not Applicable
Department for Business Energy and Industrial Strategy,Intellectual Property Office,10/09/2018,Staff Costs,People Places & Serv Directorate,Korn Ferry Hay Group (CSL),1195030448,"46,070.40",Not Applicable
Department for Business Energy and Industrial Strategy,Intellectual Property Office,26/09/2018,Information Technology,IT Directorate,Micro Focus Ltd,97079157,"25,572.84",Not Applicable
Department for Business Energy and Industrial Strategy,Intellectual Property Office,06/09/2018,Miscellaneous Expenses General,IT Directorate,Kenson Network Engineering Limited,17031,"4,800.00",Not Applicable
Department for Business Energy and Industrial Strategy,Intellectual Property Office,05/09/2018,Intangible Assets at Cost,Projects,Responsiv Solutions Limited,RSL0553,"2,973.20",Not Applicable
Department for Business Energy and Industrial Strategy,Intellectual Property Office,05/09/2018,Information Technology,Projects,Responsiv Solutions Limited,RSL0554,"1,633.04",Not Applicable
Department for Business Energy and Industrial Strategy,Intellectual Property Office,05/09/2018,Information Technology,Projects,Responsiv Solutions Limited,RSL0555,"39,000.00",Not Applicable
Department for Business Energy and Industrial Strategy,Intellectual Property Office,05/09/2018,Miscellaneous Expenses General,IT Directorate,Responsiv Solutions Limited,RSL0557,"2,400.00",Not Applicable
Department for Business Energy and Industrial Strategy,Intellectual Property Office,05/09/2018,Information Technology,Projects,Responsiv Solutions Limited,RSL0564,"1,974.56",Not Applicable
Department for Business Energy and Industrial Strategy,Intellectual Property Office,20/09/2018,Information Technology,Projects,Responsiv Solutions Limited,RSL0565,"27,273.60",Not Applicable
Department for Business Energy and Industrial Strategy,Intellectual Property Office,25/09/2018,Accommodation,People Places & Serv Directorate,Rexel UK Limited,436685330,"6,613.80",Not Applicable
Department for Business Energy and Industrial Strategy,Intellectual Property Office,03/09/2018,Accommodation,People Places & Serv Directorate,London Borough of Tower Hamlets,65958270,"410,400.00",Not Applicable
Department for Business Energy and Industrial Strategy,Intellectual Property Office,05/09/2018,Information Technology,IT Directorate,Equal Experts UK Limited,INV-4988,"15,000.00",Not Applicable
Department for Business Energy and Industrial Strategy,Intellectual Property Office,05/09/2018,Information Technology,IT Directorate,Equal Experts UK Limited,INV-5159,"15,000.00",Not Applicable
Department for Business Energy and Industrial Strategy,Intellectual Property Office,05/09/2018,Information Technology,IT Directorate,Equal Experts UK Limited,INV-5344,"15,000.00",Not Applicable
Department for Business Energy and Industrial Strategy,Intellectual Property Office,06/09/2018,Information Technology,IT Directorate,Equal Experts UK Limited,INV-5345,750.00,Not Applicable
Department for Business Energy and Industrial Strategy,Intellectual Property Office,05/09/2018,Information Technology,IT Directorate,Hippo Software,HIPPO-18 - 43,"5,136.00",Not Applicable
Department for Business Energy and Industrial Strategy,Intellectual Property Office,12/09/2018,Miscellaneous Expenses General,People Places & Serv Directorate,Autism Spectrum Connections Cymru,421,"1,106.25",Not Applicable
Department for Business Energy and Industrial Strategy,Intellectual Property Office,13/09/2018,Accommodation,People Places & Serv Directorate,Newport Wafer Fab Limited,SD00000385,"11,500.00",Not Applicable
Department for Business Energy and Industrial Strategy,Intellectual Property Office,07/09/2018,Accommodation,People Places & Serv Directorate,Newport Wafer Fab Limited,SD00000386,"6,975.00",Not Applicable
Department for Business Energy and Industrial Strategy,Intellectual Property Office,11/09/2018,Supporting UK Business,Innovation Directorate,IP21 LTD,22029,"2,499.60",Not Applicable
Department for Business Energy and Industrial Strategy,Intellectual Property Office,06/09/2018,Information Technology,Patent Directorate,Clarivate Analytics (UK) Limited,2007INV00000152,"149,112.00",Not Applicable
Department for Business Energy and Industrial Strategy,Intellectual Property Office,19/09/2018,Staff Costs,People Places & Serv Directorate,The Disruptive HR Agency Ltd,INV-0551,"4,510.12",Not Applicable
Department for Business Energy and Industrial Strategy,Intellectual Property Office,05/09/2018,Telecoms,IT Directorate,Colt Technology Services,2.0181E+12,"1,860.00",Not Applicable
Department for Business Energy and Industrial Strategy,Intellectual Property Office,11/09/2018,Accommodation,People Places & Serv Directorate,Accelerate Cleaning Solutions Ltd,6074,949.33,Not Applicable
Department for Business Energy and Industrial Strategy,Intellectual Property Office,17/09/2018,Office Supplies,People Places & Serv Directorate,Vinci Construction UK Ltd,18090088,33.60,Not Applicable
Department for Business Energy and Industrial Strategy,Intellectual Property Office,17/09/2018,Miscellaneous Expenses General,People Places & Serv Directorate,Vinci Construction UK Ltd,18090088,84.68,Not Applicable
Department for Business Energy and Industrial Strategy,Intellectual Property Office,17/09/2018,Miscellaneous Expenses General,Patent Directorate,Vinci Construction UK Ltd,18090088,121.67,Not Applicable
Department for Business Energy and Industrial Strategy,Intellectual Property Office,17/09/2018,Miscellaneous Expenses General,People Places & Serv Directorate,Vinci Construction UK Ltd,18090088,643.22,Not Applicable
Department for Business Energy and Industrial Strategy,Intellectual Property Office,17/09/2018,Miscellaneous Expenses General,Projects,Vinci Construction UK Ltd,18090088,159.94,Not Applicable
Department for Business Energy and Industrial Strategy,Intellectual Property Office,17/09/2018,Miscellaneous Expenses General,People Places & Serv Directorate,Vinci Construction UK Ltd,18090088,22.32,Not Applicable
Department for Business Energy and Industrial Strategy,Intellectual Property Office,25/09/2018,Marketing & Publicity,Innovation Directorate,Mums Enterprise Ltd,INV-0254,"1,170.00",Not Applicable
Department for Business Energy and Industrial Strategy,Intellectual Property Office,11/09/2018,Supporting UK Business,Innovation Directorate,Keltie LLP,131570,"2,500.00",Not Applicable
Department for Business Energy and Industrial Strategy,Intellectual Property Office,13/09/2018,Supporting UK Business,Innovation Directorate,Brooke-Jones Ltd,10516,"2,500.00",Not Applicable
Department for Business Energy and Industrial Strategy,Intellectual Property Office,10/09/2018,Information Technology,Projects,Silver Marlin Associates Ltd,IPO2016,"17,820.00",Not Applicable
Department for Business Energy and Industrial Strategy,Intellectual Property Office,10/09/2018,Information Technology,Projects,Silver Marlin Associates Ltd,IPO2017,"8,910.00",Not Applicable
Department for Business Energy and Industrial Strategy,Intellectual Property Office,11/09/2018,Information Technology,IT Directorate,8X8 Solutions,2231610,"1,665.11",Not Applicable
Department for Business Energy and Industrial Strategy,Intellectual Property Office,05/09/2018,Miscellaneous Expenses General,Projects,"Positive Cashflow Finance Ltd ""SQA",HSR-BB-AC-2346,"14,580.00",Not Applicable
Department for Business Energy and Industrial Strategy,Intellectual Property Office,05/09/2018,Miscellaneous Expenses General,Projects,"Positive Cashflow Finance Ltd ""SQA",HSR-BB-AC-2347,"13,200.00",Not Applicable
Department for Business Energy and Industrial Strategy,Intellectual Property Office,05/09/2018,Information Technology,IT Directorate,"Positive Cashflow Finance Ltd ""SQA",HSR-BB-AC-2348,"10,200.00",Not Applicable
Department for Business Energy and Industrial Strategy,Intellectual Property Office,12/09/2018,Miscellaneous Expenses General,Projects,"Positive Cashflow Finance Ltd ""SQA",HSR-BB-AC-2355EX,"1,440.00",Not Applicable
Department for Business Energy and Industrial Strategy,Intellectual Property Office,05/09/2018,Information Technology,IT Directorate,"Positive Cashflow Finance Ltd ""SQA",HSR-BB-AC-2356,"20,520.00",Not Applicable
Department for Business Energy and Industrial Strategy,Intellectual Property Office,13/09/2018,Staff Costs,People Places & Serv Directorate,JL Training & Consultancy,1636,"1,950.00",Not Applicable
Department for Business Energy and Industrial Strategy,Intellectual Property Office,25/09/2018,Accommodation,People Places & Serv Directorate,Brookfield Office Property Managem,2017-353,"382,060.80",Not Applicable
Department for Business Energy and Industrial Strategy,Intellectual Property Office,26/09/2018,Supporting UK Business,Innovation Directorate,Clarion Solicitors Limited,129523,"2,500.00",Not Applicable
Department for Business Energy and Industrial Strategy,Intellectual Property Office,25/09/2018,Miscellaneous Expenses General,Finance Directorate,McAfee Security UK Ltd,901636329,"15,486.00",Not Applicable
Department for Business Energy and Industrial Strategy,Intellectual Property Office,12/09/2018,Telecoms,IT Directorate,Gamma Telecom Ltd,GA1438078,"2,676.67",Not Applicable
Department for Business Energy and Industrial Strategy,Intellectual Property Office,07/09/2018,Staff Costs,People Places & Serv Directorate,People Untapped Limited,INV-0520,"19,200.00",Not Applicable
Department for Business Energy and Industrial Strategy,Intellectual Property Office,20/09/2018,Staff Costs,People Places & Serv Directorate,People Untapped Limited,INV-0521,"1,574.87",Not Applicable
Department for Business Energy and Industrial Strategy,Intellectual Property Office,11/09/2018,Staff Costs,Finance Directorate,People Untapped Limited,INV-0522,"1,388.26",Not Applicable
Department for Business Energy and Industrial Strategy,Intellectual Property Office,13/09/2018,Office Machinery,IT Directorate,Kyocera Document Solutions UK Limited,1127454,"1,206.48",Not Applicable
Department for Business Energy and Industrial Strategy,Intellectual Property Office,11/09/2018,Information Technology,IT Directorate,Microsoft Limited,9899031366,"24,000.00",Not Applicable
Department for Business Energy and Industrial Strategy,Intellectual Property Office,11/09/2018,Information Technology,IT Directorate,Microsoft Limited,9899037639,"48,000.00",Not Applicable
Department for Business Energy and Industrial Strategy,Intellectual Property Office,10/09/2018,Information Technology,IT Directorate,Millgate Computer Systems Limited,417883,"8,010.00",Not Applicable
Department for Business Energy and Industrial Strategy,Intellectual Property Office,14/09/2018,Information Technology,Projects,Deloitte MCS Limited,2410141066,"98,274.00",Not Applicable
Department for Business Energy and Industrial Strategy,Intellectual Property Office,10/09/2018,Information Technology,Projects,Deloitte MCS Limited,2410141067,"43,240.56",Not Applicable
Department for Business Energy and Industrial Strategy,Intellectual Property Office,10/09/2018,Information Technology,Projects,Deloitte MCS Limited,2410141068,"34,702.80",Not Applicable
Department for Business Energy and Industrial Strategy,Intellectual Property Office,14/09/2018,Information Technology,Projects,Deloitte MCS Limited,2410141070,"36,777.84",Not Applicable
Department for Business Energy and Industrial Strategy,Intellectual Property Office,10/09/2018,Information Technology,Projects,Deloitte MCS Limited,2410141071,"15,774.00",Not Applicable
Department for Business Energy and Industrial Strategy,Intellectual Property Office,12/09/2018,Miscellaneous Expenses General,Projects,Deloitte MCS Limited,2410141073,"23,700.60",Not Applicable
Department for Business Energy and Industrial Strategy,Intellectual Property Office,25/09/2018,Information Technology,Projects,Deloitte MCS Limited,2410141532,"27,442.80",Not Applicable
Department for Business Energy and Industrial Strategy,Intellectual Property Office,05/09/2018,Information Technology,IT Directorate,Bechtle Direct Ltd,102-4112683,"11,684.88",Not Applicable
Department for Business Energy and Industrial Strategy,Intellectual Property Office,26/09/2018,Staff Costs,IT Directorate,Black Marble,3020,"1,560.00",Not Applicable
Department for Business Energy and Industrial Strategy,Intellectual Property Office,14/09/2018,Information Technology,IT Directorate,Alexander Mann Solutions Limited,2004102,"10,069.72",Not Applicable
Department for Business Energy and Industrial Strategy,Intellectual Property Office,11/09/2018,Pay Costs,People Places & Serv Directorate,Alexander Mann Solutions Limited,2008974,626.93,Not Applicable
Department for Business Energy and Industrial Strategy,Intellectual Property Office,10/09/2018,Information Technology,IT Directorate,Alexander Mann Solutions Limited,20109,"-2,529.79",Not Applicable
Department for Business Energy and Industrial Strategy,Intellectual Property Office,03/09/2018,Information Technology,Projects,Alexander Mann Solutions Limited,2011191,"2,769.48",Not Applicable
Department for Business Energy and Industrial Strategy,Intellectual Property Office,03/09/2018,Information Technology,IT Directorate,Alexander Mann Solutions Limited,2011192,"2,850.26",Not Applicable
Department for Business Energy and Industrial Strategy,Intellectual Property Office,03/09/2018,Pay Costs,People Places & Serv Directorate,Alexander Mann Solutions Limited,2011193,613.20,Not Applicable
Department for Business Energy and Industrial Strategy,Intellectual Property Office,03/09/2018,Pay Costs,Patent Directorate,Alexander Mann Solutions Limited,2011194,554.40,Not Applicable
Department for Business Energy and Industrial Strategy,Intellectual Property Office,03/09/2018,Pay Costs,Patent Directorate,Alexander Mann Solutions Limited,2011195,621.60,Not Applicable
Department for Business Energy and Industrial Strategy,Intellectual Property Office,03/09/2018,Pay Costs,Patent Directorate,Alexander Mann Solutions Limited,2011198,566.10,Not Applicable
Department for Business Energy and Industrial Strategy,Intellectual Property Office,03/09/2018,Pay Costs,Patent Directorate,Alexander Mann Solutions Limited,2011199,626.93,Not Applicable
Department for Business Energy and Industrial Strategy,Intellectual Property Office,03/09/2018,Pay Costs,Patent Directorate,Alexander Mann Solutions Limited,2011200,635.40,Not Applicable
Department for Business Energy and Industrial Strategy,Intellectual Property Office,03/09/2018,Pay Costs,Patent Directorate,Alexander Mann Solutions Limited,2011202,544.06,Not Applicable
Department for Business Energy and Industrial Strategy,Intellectual Property Office,03/09/2018,Pay Costs,Patent Directorate,Alexander Mann Solutions Limited,2011204,501.07,Not Applicable
Department for Business Energy and Industrial Strategy,Intellectual Property Office,03/09/2018,Pay Costs,Patent Directorate,Alexander Mann Solutions Limited,2011205,626.93,Not Applicable
Department for Business Energy and Industrial Strategy,Intellectual Property Office,03/09/2018,Pay Costs,Patent Directorate,Alexander Mann Solutions Limited,2011207,573.76,Not Applicable
Department for Business Energy and Industrial Strategy,Intellectual Property Office,03/09/2018,Pay Costs,People Places & Serv Directorate,Alexander Mann Solutions Limited,2011208,508.32,Not Applicable
Department for Business Energy and Industrial Strategy,Intellectual Property Office,03/09/2018,Pay Costs,Trade Mark Directorate,Alexander Mann Solutions Limited,2011209,626.93,Not Applicable
Department for Business Energy and Industrial Strategy,Intellectual Property Office,03/09/2018,Information Technology,IT Directorate,Alexander Mann Solutions Limited,2011211,"5,052.10",Not Applicable
Department for Business Energy and Industrial Strategy,Intellectual Property Office,03/09/2018,Information Technology,IT Directorate,Alexander Mann Solutions Limited,2011212,"2,970.00",Not Applicable
Department for Business Energy and Industrial Strategy,Intellectual Property Office,03/09/2018,Information Technology,IT Directorate,Alexander Mann Solutions Limited,2011213,"2,930.40",Not Applicable
Department for Business Energy and Industrial Strategy,Intellectual Property Office,03/09/2018,Information Technology,IT Directorate,Alexander Mann Solutions Limited,2011214,811.51,Not Applicable
Department for Business Energy and Industrial Strategy,Intellectual Property Office,03/09/2018,Information Technology,IT Directorate,Alexander Mann Solutions Limited,2011215,"1,534.46",Not Applicable
Department for Business Energy and Industrial Strategy,Intellectual Property Office,03/09/2018,Pay Costs,People Places & Serv Directorate,Alexander Mann Solutions Limited,2011216,626.93,Not Applicable
Department for Business Energy and Industrial Strategy,Intellectual Property Office,25/09/2018,Information Technology,Projects,Alexander Mann Solutions Limited,20125,"-3,165.24",Not Applicable
Department for Business Energy and Industrial Strategy,Intellectual Property Office,25/09/2018,Information Technology,Projects,Alexander Mann Solutions Limited,20126,"-8,624.95",Not Applicable
Department for Business Energy and Industrial Strategy,Intellectual Property Office,25/09/2018,Information Technology,IT Directorate,Alexander Mann Solutions Limited,20127,"-14,928.30",Not Applicable
Department for Business Energy and Industrial Strategy,Intellectual Property Office,25/09/2018,Information Technology,IT Directorate,Alexander Mann Solutions Limited,20128,"-15,094.18",Not Applicable
Department for Business Energy and Industrial Strategy,Intellectual Property Office,25/09/2018,Information Technology,IT Directorate,Alexander Mann Solutions Limited,20129,"-1,534.46",Not Applicable
Department for Business Energy and Industrial Strategy,Intellectual Property Office,07/09/2018,Information Technology,IT Directorate,Alexander Mann Solutions Limited,2013320,"2,368.19",Not Applicable
Department for Business Energy and Industrial Strategy,Intellectual Property Office,07/09/2018,Pay Costs,Patent Directorate,Alexander Mann Solutions Limited,2013322,520.80,Not Applicable
Department for Business Energy and Industrial Strategy,Intellectual Property Office,07/09/2018,Pay Costs,Patent Directorate,Alexander Mann Solutions Limited,2013323,571.20,Not Applicable
Department for Business Energy and Industrial Strategy,Intellectual Property Office,07/09/2018,Pay Costs,Patent Directorate,Alexander Mann Solutions Limited,2013326,546.44,Not Applicable
Department for Business Energy and Industrial Strategy,Intellectual Property Office,07/09/2018,Pay Costs,Patent Directorate,Alexander Mann Solutions Limited,2013332,"1,075.94",Not Applicable
Department for Business Energy and Industrial Strategy,Intellectual Property Office,07/09/2018,Pay Costs,Patent Directorate,Alexander Mann Solutions Limited,2013336,508.32,Not Applicable
Department for Business Energy and Industrial Strategy,Intellectual Property Office,07/09/2018,Information Technology,IT Directorate,Alexander Mann Solutions Limited,2013337,"2,336.40",Not Applicable
Department for Business Energy and Industrial Strategy,Intellectual Property Office,10/09/2018,Information Technology,IT Directorate,Alexander Mann Solutions Limited,2013338,"2,888.95",Not Applicable
Department for Business Energy and Industrial Strategy,Intellectual Property Office,07/09/2018,Information Technology,IT Directorate,Alexander Mann Solutions Limited,2013339,"2,175.02",Not Applicable
Department for Business Energy and Industrial Strategy,Intellectual Property Office,07/09/2018,Information Technology,IT Directorate,Alexander Mann Solutions Limited,2013340,"2,632.57",Not Applicable
Department for Business Energy and Industrial Strategy,Intellectual Property Office,07/09/2018,Information Technology,IT Directorate,Alexander Mann Solutions Limited,2013341,"2,336.40",Not Applicable
Department for Business Energy and Industrial Strategy,Intellectual Property Office,07/09/2018,Information Technology,IT Directorate,Alexander Mann Solutions Limited,2013342,550.13,Not Applicable
Department for Business Energy and Industrial Strategy,Intellectual Property Office,11/09/2018,Information Technology,IT Directorate,Alexander Mann Solutions Limited,2013343,"8,977.16",Not Applicable
Department for Business Energy and Industrial Strategy,Intellectual Property Office,07/09/2018,Information Technology,IT Directorate,Alexander Mann Solutions Limited,2013344,"3,070.99",Not Applicable
Department for Business Energy and Industrial Strategy,Intellectual Property Office,07/09/2018,Information Technology,IT Directorate,Alexander Mann Solutions Limited,2013345,"2,898.29",Not Applicable
Department for Business Energy and Industrial Strategy,Intellectual Property Office,10/09/2018,Information Technology,IT Directorate,Alexander Mann Solutions Limited,2013346,"2,376.00",Not Applicable
Department for Business Energy and Industrial Strategy,Intellectual Property Office,07/09/2018,Pay Costs,Patent Directorate,Alexander Mann Solutions Limited,2013348,508.32,Not Applicable
Department for Business Energy and Industrial Strategy,Intellectual Property Office,17/09/2018,Information Technology,IT Directorate,Alexander Mann Solutions Limited,2015646,"3,048.90",Not Applicable
Department for Business Energy and Industrial Strategy,Intellectual Property Office,25/09/2018,Information Technology,Projects,Alexander Mann Solutions Limited,2015647,"21,866.06",Not Applicable
Department for Business Energy and Industrial Strategy,Intellectual Property Office,17/09/2018,Information Technology,IT Directorate,Alexander Mann Solutions Limited,2015648,"2,887.16",Not Applicable
Department for Business Energy and Industrial Strategy,Intellectual Property Office,17/09/2018,Pay Costs,People Places & Serv Directorate,Alexander Mann Solutions Limited,2015649,617.40,Not Applicable
Department for Business Energy and Industrial Strategy,Intellectual Property Office,17/09/2018,Pay Costs,Patent Directorate,Alexander Mann Solutions Limited,2015651,571.20,Not Applicable
Department for Business Energy and Industrial Strategy,Intellectual Property Office,17/09/2018,Pay Costs,Patent Directorate,Alexander Mann Solutions Limited,2015654,566.10,Not Applicable
Department for Business Energy and Industrial Strategy,Intellectual Property Office,17/09/2018,Pay Costs,Patent Directorate,Alexander Mann Solutions Limited,2015655,588.80,Not Applicable
Department for Business Energy and Industrial Strategy,Intellectual Property Office,17/09/2018,Pay Costs,Patent Directorate,Alexander Mann Solutions Limited,2015656,566.10,Not Applicable
Department for Business Energy and Industrial Strategy,Intellectual Property Office,17/09/2018,Pay Costs,Patent Directorate,Alexander Mann Solutions Limited,2015657,540.42,Not Applicable
Department for Business Energy and Industrial Strategy,Intellectual Property Office,17/09/2018,Pay Costs,Patent Directorate,Alexander Mann Solutions Limited,2015658,566.10,Not Applicable
Department for Business Energy and Industrial Strategy,Intellectual Property Office,17/09/2018,Pay Costs,Patent Directorate,Alexander Mann Solutions Limited,2015659,626.93,Not Applicable
Department for Business Energy and Industrial Strategy,Intellectual Property Office,17/09/2018,Pay Costs,Patent Directorate,Alexander Mann Solutions Limited,2015662#,573.76,Not Applicable
Department for Business Energy and Industrial Strategy,Intellectual Property Office,17/09/2018,Pay Costs,Trade Mark Directorate,Alexander Mann Solutions Limited,2015664,626.93,Not Applicable
Department for Business Energy and Industrial Strategy,Intellectual Property Office,17/09/2018,Pay Costs,Patent Directorate,Alexander Mann Solutions Limited,2015665,525.26,Not Applicable
Department for Business Energy and Industrial Strategy,Intellectual Property Office,17/09/2018,Information Technology,IT Directorate,Alexander Mann Solutions Limited,2015666,"4,157.40",Not Applicable
Department for Business Energy and Industrial Strategy,Intellectual Property Office,17/09/2018,Information Technology,IT Directorate,Alexander Mann Solutions Limited,2015667,"1,762.20",Not Applicable
Department for Business Energy and Industrial Strategy,Intellectual Property Office,17/09/2018,Information Technology,IT Directorate,Alexander Mann Solutions Limited,2015668,"2,193.80",Not Applicable
Department for Business Energy and Industrial Strategy,Intellectual Property Office,17/09/2018,Information Technology,IT Directorate,Alexander Mann Solutions Limited,2015669,"2,158.20",Not Applicable
Department for Business Energy and Industrial Strategy,Intellectual Property Office,25/09/2018,Information Technology,IT Directorate,Alexander Mann Solutions Limited,2015671,"20,021.98",Not Applicable
Department for Business Energy and Industrial Strategy,Intellectual Property Office,17/09/2018,Information Technology,IT Directorate,Alexander Mann Solutions Limited,2015672,"3,622.86",Not Applicable
Department for Business Energy and Industrial Strategy,Intellectual Property Office,17/09/2018,Pay Costs,People Places & Serv Directorate,Alexander Mann Solutions Limited,2015673,626.93,Not Applicable
Department for Business Energy and Industrial Strategy,Intellectual Property Office,17/09/2018,Pay Costs,IT Directorate,Alexander Mann Solutions Limited,2015674,594.82,Not Applicable
Department for Business Energy and Industrial Strategy,Intellectual Property Office,25/09/2018,Information Technology,IT Directorate,Alexander Mann Solutions Limited,2018083,"3,218.28",Not Applicable
Department for Business Energy and Industrial Strategy,Intellectual Property Office,25/09/2018,Information Technology,Projects,Alexander Mann Solutions Limited,2018084,"3,165.28",Not Applicable
Department for Business Energy and Industrial Strategy,Intellectual Property Office,25/09/2018,Information Technology,IT Directorate,Alexander Mann Solutions Limited,2018085,"2,944.42",Not Applicable
Department for Business Energy and Industrial Strategy,Intellectual Property Office,25/09/2018,Pay Costs,People Places & Serv Directorate,Alexander Mann Solutions Limited,2018086,621.60,Not Applicable
Department for Business Energy and Industrial Strategy,Intellectual Property Office,25/09/2018,Pay Costs,Patent Directorate,Alexander Mann Solutions Limited,2018088,621.60,Not Applicable
Department for Business Energy and Industrial Strategy,Intellectual Property Office,25/09/2018,Pay Costs,Trade Mark Directorate,Alexander Mann Solutions Limited,2018089,626.93,Not Applicable
Department for Business Energy and Industrial Strategy,Intellectual Property Office,25/09/2018,Pay Costs,Patent Directorate,Alexander Mann Solutions Limited,2018092,577.57,Not Applicable
Department for Business Energy and Industrial Strategy,Intellectual Property Office,25/09/2018,Pay Costs,Patent Directorate,Alexander Mann Solutions Limited,2018093,626.93,Not Applicable
Department for Business Energy and Industrial Strategy,Intellectual Property Office,25/09/2018,Pay Costs,Trade Mark Directorate,Alexander Mann Solutions Limited,2018098,626.93,Not Applicable
Department for Business Energy and Industrial Strategy,Intellectual Property Office,25/09/2018,Pay Costs,Patent Directorate,Alexander Mann Solutions Limited,2018099,626.93,Not Applicable
Department for Business Energy and Industrial Strategy,Intellectual Property Office,25/09/2018,Information Technology,IT Directorate,Alexander Mann Solutions Limited,2018100,"2,415.60",Not Applicable
Department for Business Energy and Industrial Strategy,Intellectual Property Office,25/09/2018,Information Technology,IT Directorate,Alexander Mann Solutions Limited,2018101,"2,795.76",Not Applicable
Department for Business Energy and Industrial Strategy,Intellectual Property Office,25/09/2018,Information Technology,IT Directorate,Alexander Mann Solutions Limited,2018102,"4,061.33",Not Applicable
Department for Business Energy and Industrial Strategy,Intellectual Property Office,25/09/2018,Information Technology,IT Directorate,Alexander Mann Solutions Limited,2018103,"2,193.80",Not Applicable
Department for Business Energy and Industrial Strategy,Intellectual Property Office,25/09/2018,Information Technology,IT Directorate,Alexander Mann Solutions Limited,2018104,"2,930.40",Not Applicable
Department for Business Energy and Industrial Strategy,Intellectual Property Office,25/09/2018,Information Technology,IT Directorate,Alexander Mann Solutions Limited,2018105,"2,833.38",Not Applicable
Department for Business Energy and Industrial Strategy,Intellectual Property Office,25/09/2018,Information Technology,IT Directorate,Alexander Mann Solutions Limited,2018106,"2,362.64",Not Applicable
Department for Business Energy and Industrial Strategy,Intellectual Property Office,25/09/2018,Information Technology,IT Directorate,Alexander Mann Solutions Limited,2018107,"3,622.86",Not Applicable
Department for Business Energy and Industrial Strategy,Intellectual Property Office,25/09/2018,Information Technology,IT Directorate,Alexander Mann Solutions Limited,2018108,"3,438.60",Not Applicable
Department for Business Energy and Industrial Strategy,Intellectual Property Office,25/09/2018,Information Technology,IT Directorate,Alexander Mann Solutions Limited,2018109,"2,771.70",Not Applicable
Department for Business Energy and Industrial Strategy,Intellectual Property Office,25/09/2018,Pay Costs,People Places & Serv Directorate,Alexander Mann Solutions Limited,2018110,626.93,Not Applicable
Department for Business Energy and Industrial Strategy,Intellectual Property Office,25/09/2018,Pay Costs,IT Directorate,Alexander Mann Solutions Limited,2018111,"2,246.84",Not Applicable
Department for Business Energy and Industrial Strategy,Intellectual Property Office,25/09/2018,Pay Costs,IT Directorate,Alexander Mann Solutions Limited,2018112,"1,335.74",Not Applicable
Department for Business Energy and Industrial Strategy,Intellectual Property Office,25/09/2018,Accommodation,People Places & Serv Directorate,CBRE Managed Services Ltd,S00616138,"1,769.69",Not Applicable
Department for Business Energy and Industrial Strategy,Intellectual Property Office,11/09/2018,Accommodation,People Places & Serv Directorate,CBRE Managed Services Ltd,S00616781,"2,613.84",Not Applicable
Department for Business Energy and Industrial Strategy,Intellectual Property Office,11/09/2018,Accommodation,People Places & Serv Directorate,CBRE Managed Services Ltd,S00616807,"1,310.90",Not Applicable
Department for Business Energy and Industrial Strategy,Intellectual Property Office,25/09/2018,Accommodation,People Places & Serv Directorate,CBRE Managed Services Ltd,S00616822,"6,896.60",Not Applicable
Department for Business Energy and Industrial Strategy,Intellectual Property Office,20/09/2018,Staff Costs,People Places & Serv Directorate,The Continuity Forum,2337,750.00,Not Applicable
Department for Business Energy and Industrial Strategy,Intellectual Property Office,27/09/2018,Information Technology,IT Directorate,DSG Retail Ltd,15999870,"5,389.01",Not Applicable
Department for Business Energy and Industrial Strategy,Intellectual Property Office,13/09/2018,Supporting UK Business,Innovation Directorate,JA Kemp,810654,"2,500.00",Not Applicable
Department for Business Energy and Industrial Strategy,Intellectual Property Office,12/09/2018,Information Technology,IT Directorate,Norman Broadbent Solutions,NBS000427,"9,600.00",Not Applicable
Department for Business Energy and Industrial Strategy,Intellectual Property Office,27/09/2018,Miscellaneous Expenses General,People Places & Serv Directorate,Thomas Telford Limited,I056573,"4,017.00",Not Applicable
Department for Business Energy and Industrial Strategy,Intellectual Property Office,10/09/2018,Information Technology,IT Directorate,Atlassian Pty Ltd,AT-60230346,"4,715.13",Not Applicable
Department for Business Energy and Industrial Strategy,Intellectual Property Office,10/09/2018,Information Technology,IT Directorate,Atlassian Pty Ltd,AT-60402261,"14,225.09",Not Applicable
Department for Business Energy and Industrial Strategy,Intellectual Property Office,07/09/2018,Marketing & Publicity,Innovation Directorate,Business Funding Show Limited,E284,"1,800.00",Not Applicable
Department for Business Energy and Industrial Strategy,Intellectual Property Office,18/09/2018,Miscellaneous Expenses General,Copyright and Enforcement Directorate,St Matthew's House & Conference Centre,162200,673.20,Not Applicable
Department for Business Energy and Industrial Strategy,Intellectual Property Office,25/09/2018,Information Technology,Projects,Cotswold Connections Ltd,921,"21,780.00",Not Applicable
Department for Business Energy and Industrial Strategy,Intellectual Property Office,14/09/2018,Information Technology,People Places & Serv Directorate,Extensis,1047468,"2,660.00",Not Applicable
Department for Business Energy and Industrial Strategy,Intellectual Property Office,07/09/2018,Supporting UK Business,Innovation Directorate,Origin Limited,3Q2018,"2,500.00",Not Applicable
Department for Business Energy and Industrial Strategy,Intellectual Property Office,12/09/2018,Miscellaneous Expenses General,People Places & Serv Directorate,IP Inclusive Management,14,"2,000.00",Not Applicable
Department for Business Energy and Industrial Strategy,Intellectual Property Office,26/09/2018,Supporting UK Business,Innovation Directorate,JPP Law LLP,829,"2,500.00",Not Applicable
